bitfinex-derivatives/quotes_ETHF0:USTF0_20250116
["timestamp","ask_amount","ask_price","bid_price","bid_amount"]
[1737024812207,1.06573,3338.8,3338.7,0.59912]
[1737024814617,0.4666,3338.8,3338.7,0.59912]
[1737024829428,0.4666,3338.8,3338.7,1.67600212]
[1737024830219,3.2078,3339.4,3338.7,1.07688212]
[1737024830424,3.6831,3339.4,3339.3,1.67591212]
[1737024831015,3.2078,3339.4,3339.3,1.67591212]
[1737024831214,0.97,3339.9,3339.8,0.59894]
[1737024831522,0.97,3339.9,3339.8,1.67582212]
[1737024831724,1.4278,3339.9,3339.8,1.67582212]
[1737024833429,1.4278,3339.9,3339.8,0.59894]
[1737024834428,3.2078,3340.0,3339.6,2.38512333]
[1737024834628,3.2078,3340.0,3339.9,0.59892]
[1737024835026,3.2078,3340.0,3339.9,2.98404333]
[1737024836131,3.6782,3340.0,3339.9,2.98404333]
[1737024838423,0.4704,3340.0,3339.9,2.98404333]
[1737024838731,3.6782,3340.0,3339.9,2.98404333]
[1737024838930,0.4704,3340.0,3339.9,2.98404333]
[1737024839628,0.4704,3340.0,3339.9,3.44504333]
[1737024840529,0.4823,3340.2,3340.1,0.59888]
[1737024841625,1.08117,3340.2,3340.1,0.59888]
[1737024846436,1.08117,3340.2,3340.0,0.59889]
[1737024846437,0.5989,3340.1,3340.0,0.59889]
[1737024846630,1.0463,3340.1,3340.0,0.59889]
[1737024848928,0.4474,3340.1,3339.7,0.4562]
[1737024849231,3.80674,3339.8,3339.7,2.24216]
[1737024849429,3.80674,3339.8,3339.7,1.05516]
[1737024849833,3.80674,3339.8,3339.7,0.59896]
[1737024850932,3.2078,3339.8,3339.7,0.59896]
[1737024851128,3.80674,3339.8,3339.7,0.59896]
[1737024852235,3.2078,3339.8,3339.7,0.59896]
[1737024852541,3.80674,3339.8,3339.7,0.59896]
[1737024855344,3.80674,3339.8,3339.7,1.67531603]
[1737024860934,3.2078,3339.8,3339.7,1.67531603]
[1737024861744,3.80674,3339.8,3339.7,1.67531603]
[1737024861941,3.80674,3339.8,3339.7,0.59896]
[1737024862141,3.80674,3339.8,3339.7,1.67531603]
[1737024867446,3.2078,3339.8,3339.4,0.4832]
[1737024867647,2.01485603,3339.7,3339.2,1.07635603]
[1737024867946,3.80683,3339.3,3339.2,1.07635603]
[1737024871558,0.59908,3339.0,3338.9,0.5991]
[1737024872047,0.5991,3338.9,3338.8,3.94928215]
[1737024872350,3.2078,3338.9,3338.4,3.2078]
[1737024872650,3.2078,3338.9,3338.5,0.59915]
[1737024872651,0.59917,3338.6,3338.5,0.59915]
[1737024872842,4.70558,3338.9,3338.5,0.59915]
[1737024872843,3.2078,3338.9,3338.5,2.38637215]
[1737024873049,3.80692,3338.9,3338.8,2.98549215]
[1737024874052,3.2078,3338.9,3338.8,2.98549215]
[1737024876355,3.2078,3338.9,3338.8,3.46729215]
[1737024876555,3.8069,3338.9,3338.8,3.46729215]
[1737024876857,3.2078,3338.9,3338.8,3.46729215]
[1737024877858,3.8069,3338.9,3338.8,3.46729215]
[1737024878554,3.2078,3338.9,3338.7,2.938]
[1737024878863,1.07082,3338.8,3338.7,2.938]
[1737024879356,1.54852,3338.8,3338.7,2.938]
[1737024881756,1.54852,3338.8,3338.3,2.98556215]
[1737024881963,0.59919,3338.4,3338.3,2.98556215]
[1737024882257,1.49789,3338.6,3338.0,5.59417215]
[1737024882459,0.59923,3338.2,3338.1,1.07623]
[1737024893366,0.59923,3338.2,3338.1,2.1535947]
[1737024899668,4.29772,3338.3,3338.2,0.59922]
[1737024899868,3.80702,3338.3,3338.2,0.59922]
[1737024900064,3.80702,3338.3,3338.2,1.04642]
[1737024900668,3.80702,3338.3,3338.2,2.1237847]
[1737024902272,0.59922,3338.3,3338.2,2.1237847]
[1737024903876,0.59922,3338.3,3338.2,0.59922]
[1737024904074,1.08402,3338.3,3338.2,1.6765847]
[1737024904267,1.57562,3338.3,3338.2,1.6765847]
[1737024904880,3.2078,3338.4,3338.2,1.0773647]
[1737024905172,3.80701,3338.4,3338.3,1.09281]
[1737024905473,3.80701,3338.4,3338.3,1.58341]
[1737024906868,3.80701,3338.4,3338.3,1.09281]
[1737024907067,3.80701,3338.4,3338.3,0.59921]
[1737024910372,0.59921,3338.3,3338.2,1.6765747]
[1737024912274,0.59921,3338.3,3338.2,1.0773647]
[1737024912471,3.2078,3338.4,3337.6,4.71215981]
[1737024912781,1.5282647,3338.5,3337.7,0.59931]
[1737024912782,3.80711,3337.8,3337.7,0.59931]
[1737024912979,3.80711,3337.8,3337.6,5.78908981]
[1737024912980,0.59931,3337.7,3337.6,5.78908981]
[1737024913183,1.05081,3337.7,3337.6,5.78908981]
[1737024913475,1.05081,3337.7,3337.6,1.07693]
[1737024914377,1.05081,3337.7,3337.6,2.1542947]
[1737024918487,1.05081,3337.7,3337.6,1.5549647]
[1737024918778,1.05081,3337.7,3337.6,2.1542947]
[1737024919183,1.05081,3337.7,3337.5,0.4852]
[1737024919184,0.4515,3337.7,3337.5,0.4852]
[1737024919375,1.06083,3337.6,3337.5,0.4852]
[1737024920275,0.59937,3337.4,3337.3,0.4565]
[1737024920479,3.80717,3337.4,3337.3,2.5802547]
[1737024923283,0.59937,3337.4,3337.3,2.5802547]
[1737024925484,0.59937,3337.5,3337.4,0.59935]
[1737024925686,0.59937,3337.5,3337.4,1.6767147]
[1737024926182,3.6693,3337.6,3337.4,1.6767147]
[1737024926183,3.80714,3337.6,3337.5,0.59933]
[1737024926377,3.80714,3337.6,3337.5,1.09043]
[1737024931685,3.80714,3337.6,3337.5,2.1677947]
[1737024933191,3.80714,3337.6,3337.5,1.09043]
[1737024933393,3.80714,3337.6,3337.5,1.5684647]
[1737024933688,3.80713,3337.6,3337.5,1.6767147]
[1737024934898,3.80713,3337.6,3337.5,1.0773647]
[1737024935102,4.27303,3337.6,3337.5,1.0773647]
[1737024935289,3.6737,3337.6,3337.3,3.8415]
[1737024935495,3.6737,3337.6,3337.2,1.6767647]
[1737024935496,2.09773,3337.5,3337.2,1.6767647]
[1737024935694,0.59939,3337.3,3337.2,1.6767647]
[1737024935894,0.4678,3337.4,3336.9,0.9518]
[1737024936101,3.80724,3337.0,3336.9,0.4865]
[1737024936298,0.59948,3336.8,3336.7,4.71215981]
[1737024936600,5.7837747,3337.0,3336.5,2.1285847]
[1737024936601,0.59951,3336.6,3336.5,2.1285847]
[1737024937397,0.59951,3336.6,3336.5,1.05122]
[1737024939206,1.0609,3336.7,3336.6,0.59951]
[1737024942007,1.0609,3336.7,3336.5,1.05123]
[1737024942008,0.59951,3336.6,3336.5,1.05123]
[1737024946210,0.4614,3336.7,3336.5,0.4517]
[1737024946409,1.06091,3336.7,3336.6,0.59951]
[1737024947417,0.59951,3336.7,3336.6,0.59951]
[1737024947717,3.2078,3336.8,3336.7,3.53749]
[1737024947920,0.4589,3337.1,3336.9,0.59944]
[1737024947921,0.59945,3337.0,3336.9,0.59944]
[1737024948111,1.05834,3337.1,3337.0,0.59944]
[1737024948814,3.2078,3337.2,3336.9,2.88108173]
[1737024949014,3.2078,3337.2,3337.1,0.59942]
[1737024951912,3.2078,3337.2,3336.8,0.4482]
[1737024952117,0.59944,3337.1,3336.7,2.38968173]
[1737024952422,1.08434,3337.1,3336.7,2.38968173]
[1737024952616,0.4849,3337.1,3336.7,2.38968173]
[1737024952817,1.08434,3337.1,3337.0,0.59944]
[1737024953128,1.08434,3337.1,3336.7,2.38968173]
[1737024953129,0.4849,3337.1,3336.7,2.38968173]
[1737024953316,0.59947,3337.0,3336.9,0.59945]
[1737024955316,0.59948,3336.9,3336.8,0.59947]
[1737024955516,1.98348,3337.1,3336.4,0.4716]
[1737024955823,0.59952,3336.7,3336.6,0.5995]
[1737024958023,3.2078,3336.8,3336.7,0.59949]
[1737024958219,3.80728,3336.8,3336.7,0.59949]
[1737024958627,3.2078,3336.8,3336.7,0.59949]
[1737024958827,3.2078,3336.8,3336.7,2.98917173]
[1737024959021,1.08434,3337.1,3337.0,0.59944]
[1737024960727,0.4849,3337.1,3337.0,0.59944]
[1737024960928,3.2078,3337.2,3337.1,0.59942]
[1737024961137,3.2078,3337.2,3337.1,4.72342]
[1737024962127,3.2078,3337.2,3337.1,5.21552]
[1737024964330,0.59936,3337.5,3337.4,0.59937]
[1737024964723,3.6949,3337.6,3337.1,4.6161]
[1737024965020,0.5994,3337.3,3337.2,0.59938]
[1737024965632,0.5994,3337.2,3337.1,2.938]
[1737024965927,4.7389,3337.2,3337.1,2.938]
[1737024967119,4.1395,3337.2,3336.4,1.186]
[1737024967324,0.59955,3336.5,3336.4,1.78554]
[1737024970730,0.59955,3336.5,3336.4,0.59954]
[1737024971730,0.59953,3336.6,3336.5,0.59952]
[1737024972036,0.59954,3336.5,3336.4,0.59953]
[1737024976237,0.59955,3336.4,3336.3,3.53756]
[1737024976436,1.06345,3336.4,3336.3,3.53756]
[1737024977236,0.4639,3336.4,3336.3,3.53756]
[1737024977436,1.06345,3336.4,3336.3,3.53756]
[1737024978039,1.06345,3336.4,3336.3,3.53757]
[1737024989844,1.06345,3336.4,3336.3,0.59957]
[1737024990841,0.4639,3336.4,3336.3,0.59957]
[1737024992240,3.2078,3336.5,3336.4,0.59955]
[1737024993345,3.2078,3336.5,3336.4,1.67801929]
[1737024995448,3.2078,3336.5,3336.4,0.59955]
[1737024999340,0.4685,3336.7,3336.4,0.59955]
[1737024999540,1.06799,3336.7,3336.6,0.59951]
[1737025000551,0.4685,3336.7,3336.6,0.59951]
[1737025000850,1.06799,3336.7,3336.6,0.59951]
[1737025001744,0.4685,3336.7,3336.6,0.59951]
[1737025001951,1.06799,3336.7,3336.6,0.59951]
[1737025002342,0.4685,3336.7,3336.6,0.59951]
[1737025002749,4.29736,3336.9,3336.8,0.59948]
[1737025002953,3.2078,3336.9,3336.8,0.59948]
[1737025005246,3.6592,3337.3,3337.2,0.5994]
[1737025005442,3.2078,3337.3,3337.2,0.5994]
[1737025005842,3.2078,3337.3,3337.2,1.0545]
[1737025014159,3.80719,3337.3,3337.2,1.0545]
[1737025014548,3.2078,3337.3,3337.2,1.0545]
[1737025014857,3.80719,3337.3,3337.2,1.0545]
[1737025016559,3.80719,3337.3,3337.2,3.9925]
[1737025016960,3.80719,3337.3,3337.2,2.938]
[1737025019456,3.80719,3337.3,3337.2,4.6155942]
[1737025023860,3.80719,3337.3,3337.2,3.5374]
[1737025028861,3.80719,3337.3,3337.2,2.938]
[1737025029773,4.8853842,3337.3,3337.2,2.938]
[1737025030061,0.59955,3336.5,3336.3,5.89715981]
[1737025030265,1.08735,3336.4,3336.3,4.71215981]
[1737025030562,1.08735,3336.4,3336.3,5.31172981]
[1737025030869,0.59957,3336.3,3336.2,0.59957]
[1737025031568,0.59958,3336.2,3336.1,1.55369]
[1737025032665,0.59958,3336.2,3336.1,0.9541]
[1737025032968,0.59958,3336.2,3336.1,1.5537]
[1737025035968,3.2078,3336.5,3336.2,1.49897]
[1737025036175,3.2078,3336.5,3336.4,2.98990843]
[1737025037673,0.59948,3336.8,3336.7,0.59949]
[1737025038774,0.59948,3336.8,3336.7,1.08369]
[1737025039572,0.4792,3336.9,3336.7,0.4842]
[1737025039773,0.4792,3336.9,3336.8,0.59948]
[1737025039975,1.07866,3336.9,3336.8,0.59948]
[1737025041772,0.4792,3336.9,3336.8,0.59948]
[1737025042565,3.2078,3337.1,3337.0,0.59944]
[1737025042772,3.80722,3337.1,3337.0,0.59944]
[1737025043171,3.2078,3337.1,3337.0,0.59944]
[1737025045868,3.80722,3337.1,3337.0,0.59944]
[1737025046972,0.59947,3336.9,3336.8,0.59948]
[1737025047573,1.09207,3336.9,3336.8,0.59948]
[1737025048076,3.2078,3337.1,3337.0,0.59944]
[1737025048077,3.80723,3337.1,3337.0,0.59944]
[1737025048470,3.2078,3337.1,3337.0,0.59944]
[1737025052783,0.59941,3337.2,3336.7,5.55827843]
[1737025052975,0.59941,3337.2,3337.1,0.59942]
[1737025053476,0.9536,3337.4,3337.1,0.59942]
[1737025053777,0.5994,3337.3,3337.2,0.59939]
[1737025056978,0.9536,3337.4,3337.0,0.9647]
[1737025057285,1.55297,3337.4,3337.3,0.59939]
[1737025062399,1.55297,3337.4,3337.3,1.67750899]
[1737025063095,0.59939,3337.3,3337.2,2.938]
[1737025063294,0.59939,3337.3,3337.2,3.5374]
[1737025063696,0.59939,3337.3,3337.2,2.938]
[1737025066299,0.59939,3337.3,3337.2,2.195]
[1737025067495,2.03171899,3337.4,3336.8,0.59948]
[1737025067696,0.59951,3336.8,3336.7,0.59948]
[1737025067899,0.59951,3336.6,3336.5,3.97852]
[1737025068193,0.59951,3336.6,3336.5,2.79452]
[1737025068595,1.67762899,3336.6,3336.5,2.195]
[1737025069307,2.16232899,3336.6,3336.5,2.195]
[1737025070407,1.08421,3336.6,3336.5,2.195]
[1737025070800,2.16232899,3336.6,3336.5,2.195]
[1737025073513,0.59953,3336.5,3336.4,0.59954]
[1737025073815,3.80733,3336.5,3336.4,0.59954]
[1737025075107,3.80733,3336.5,3336.4,1.67765899]
[1737025077008,3.80733,3336.5,3336.2,3.28198]
[1737025077009,0.59957,3336.3,3336.2,3.28198]
[1737025077214,0.59957,3336.3,3336.2,2.6824]
[1737025078216,0.59957,3336.3,3336.2,3.28198]
[1737025078516,0.59957,3336.3,3336.2,2.6824]
[1737025079413,0.59957,3336.3,3336.2,0.4874]
[1737025081118,0.59957,3336.3,3336.2,1.08698]
[1737025081311,0.59957,3336.3,3336.2,0.4874]
[1737025081512,0.59957,3336.3,3336.2,1.08698]
[1737025082118,0.59957,3336.3,3336.2,0.4874]
[1737025083020,0.59957,3336.3,3336.2,1.08698]
[1737025084319,0.59957,3336.3,3336.2,0.4874]
[1737025084522,0.59957,3336.3,3336.2,1.08698]
[1737025084722,0.59957,3336.3,3336.2,0.4874]
[1737025084931,0.59957,3336.3,3336.2,1.08698]
[1737025085317,0.59957,3336.3,3336.2,0.4874]
[1737025087225,0.59957,3336.3,3336.2,1.08698]
[1737025088528,3.2078,3336.5,3336.2,0.4874]
[1737025088826,0.59957,3336.4,3336.3,0.59955]
[1737025093128,1.67768899,3336.4,3336.3,0.59955]
[1737025097331,0.59957,3336.4,3336.3,0.59955]
[1737025102340,3.80737,3336.4,3336.3,0.59955]
[1737025105040,0.59957,3336.3,3336.2,1.08697]
[1737025107245,4.76621899,3336.4,3335.6,3.2078]
[1737025107466,4.88557899,3336.0,3335.9,0.59962]
[1737025107639,3.80746,3336.0,3335.9,0.59962]
[1737025108344,0.59966,3335.9,3335.8,0.59965]
[1737025128650,1.55521899,3336.0,3335.7,2.1077]
[1737025128954,0.59966,3335.8,3335.7,2.70735]
[1737025133959,1.55521899,3336.0,3335.7,2.1077]
[1737025134163,0.59965,3335.9,3335.8,0.59964]
[1737025137960,0.59964,3336.0,3335.9,0.59962]
[1737025143663,3.2078,3336.1,3335.9,0.59962]
[1737025143863,3.80742,3336.1,3336.0,0.59962]
[1737025156669,10.85868832,3336.1,3336.0,0.59962]
[1737025165789,10.25906832,3336.1,3335.7,2.1077]
[1737025166083,0.59966,3335.9,3335.8,0.59963]
[1737025171588,1.07811899,3335.9,3335.4,6.49487981]
[1737025171790,0.59971,3335.5,3335.4,6.49487981]
[1737025171988,0.59971,3335.5,3335.4,1.78272]
[1737025172979,0.59971,3335.5,3335.4,2.23902]
[1737025173387,0.59971,3335.5,3335.4,3.31713899]
[1737025174193,0.59971,3335.5,3335.4,2.13413899]
[1737025178395,4.28591899,3335.7,3335.4,1.53441899]
[1737025178695,0.59971,3335.6,3335.5,0.59969]
[1737025182793,4.28591899,3335.7,3335.3,1.6706]
[1737025182998,0.59973,3335.5,3335.4,0.5997]
[1737025186895,3.2078,3335.7,3335.3,3.06506899]
[1737025187101,3.2078,3335.7,3335.6,1.07811899]
[1737025187802,3.80748,3335.7,3335.6,1.67780899]
[1737025188802,3.2078,3335.7,3335.6,1.67780899]
[1737025191015,3.80747,3335.7,3335.6,1.78269]
[1737025193217,4.30267,3335.7,3335.6,1.78269]
[1737025193814,3.703,3335.7,3335.3,0.4876]
[1737025194117,1.67784899,3335.5,3335.4,0.59971]
[1737025197013,1.67784899,3335.5,3335.2,1.6348]
[1737025197210,3.80755,3335.3,3335.2,2.23456]
[1737025198521,3.80755,3335.3,3335.2,1.05156]
[1737025198909,0.5998,3335.1,3335.0,0.59978]
[1737025199117,1.67791899,3335.1,3335.0,0.59978]
[1737025199519,1.67791899,3335.1,3335.0,1.09148]
[1737025199720,0.9629,3335.2,3335.0,0.4917]
[1737025199922,0.4682,3335.2,3335.1,0.59978]
[1737025200123,3.2078,3335.3,3335.2,0.59976]
[1737025200323,3.2078,3335.3,3335.2,1.78276]
[1737025201319,4.28591899,3335.3,3335.0,0.4917]
[1737025201525,0.5998,3335.0,3334.9,5.31196981]
[1737025201816,1.07517,3335.2,3335.1,0.59978]
[1737025202010,3.2078,3335.3,3335.0,2.00781899]
[1737025202214,3.2078,3335.3,3335.2,1.67787899]
[1737025202419,3.2078,3335.3,3335.1,0.59977]
[1737025202420,0.59979,3335.2,3335.1,0.59977]
[1737025202613,3.80756,3335.3,3335.2,0.59976]
[1737025202819,3.80756,3335.3,3335.0,0.4603]
[1737025202820,0.59978,3335.2,3335.1,0.59977]
[1737025205114,0.59978,3335.2,3335.0,0.4603]
[1737025205115,3.2078,3335.3,3335.0,0.4603]
[1737025205319,1.07811899,3335.2,3334.6,0.4752]
[1737025205628,0.59987,3334.7,3334.6,0.59986]
[1737025206124,0.59987,3334.6,3334.5,6.49503981]
[1737025206524,0.59987,3334.6,3334.5,1.78288]
[1737025206926,0.59987,3334.6,3334.5,0.59988]
[1737025208723,0.9468,3334.7,3334.4,0.4861]
[1737025209028,3.80769,3334.5,3334.4,1.086]
[1737025211421,3.80769,3334.5,3334.4,0.4861]
[1737025211622,3.80769,3334.5,3334.1,2.195]
[1737025211623,3.2078,3334.5,3334.1,2.195]
[1737025211816,3.2078,3334.5,3334.1,0.59996]
[1737025211817,1.07811899,3334.2,3334.1,0.59996]
[1737025212120,1.67805899,3334.2,3333.9,4.28591899]
[1737025212326,1.55711899,3334.2,3333.9,3.2078]
[1737025212531,0.4897,3334.1,3334.0,0.59998]
[1737025212828,0.479,3334.2,3334.1,0.59996]
[1737025213022,3.8077,3334.5,3333.9,4.28591899]
[1737025213023,3.80769,3334.5,3334.4,0.5999]
[1737025213222,4.28591899,3334.5,3334.4,0.5999]
[1737025213423,4.88579899,3334.5,3334.4,0.5999]
[1737025216931,1.67799899,3334.5,3334.4,0.5999]
[1737025217121,4.88579899,3334.5,3334.4,0.5999]
[1737025217724,4.88579899,3334.5,3334.2,0.9533]
[1737025217725,4.28591899,3334.5,3334.2,0.9533]
[1737025217925,0.59991,3334.4,3334.3,0.5999]
[1737025219325,4.88581899,3334.5,3334.4,0.5999]
[1737025219727,0.59991,3334.4,3334.3,0.5999]
[1737025221731,4.88580899,3334.5,3334.4,0.5999]
[1737025225134,4.28591899,3334.5,3334.2,0.9533]
[1737025225324,1.67803899,3334.3,3334.2,1.55322]
[1737025225525,1.07811899,3334.3,3334.2,1.55322]
[1737025225934,1.67803899,3334.3,3334.2,1.55322]
[1737025226134,1.07811899,3334.3,3334.2,1.55322]
[1737025226731,1.67803899,3334.3,3334.2,1.55322]
[1737025226928,1.67803899,3334.3,3334.1,2.195]
[1737025227227,1.67803899,3334.3,3334.1,2.79494]
[1737025227228,1.07434,3334.2,3334.1,2.79494]
[1737025227922,1.07434,3334.2,3334.1,2.195]
[1737025228327,1.07434,3334.2,3334.1,2.79495]
[1737025228633,1.07434,3334.2,3334.1,2.195]
[1737025228830,1.07434,3334.2,3334.1,2.79495]
[1737025229134,1.07434,3334.2,3334.1,2.195]
[1737025229340,0.59999,3334.0,3333.9,0.59999]
[1737025229527,1.67810899,3334.0,3333.9,0.59999]
[1737025230234,1.67808899,3334.0,3333.9,0.59999]
[1737025231130,1.07811899,3334.0,3333.9,0.59999]
[1737025231329,1.67808899,3334.0,3333.9,0.59999]
[1737025233240,1.07811899,3334.0,3333.9,0.59999]
[1737025233438,1.67808899,3334.0,3333.9,0.59999]
[1737025233832,1.07811899,3334.0,3333.8,0.9493]
[1737025234033,0.60004,3333.7,3333.6,0.60003]
[1737025234240,1.67815899,3333.7,3333.6,1.04983]
[1737025234839,1.67815899,3333.7,3333.6,0.4498]
[1737025235034,1.67815899,3333.7,3333.4,0.4605]
[1737025235035,1.07811899,3333.7,3333.4,0.4605]
[1737025235243,1.67817899,3333.5,3333.4,1.06057]
[1737025235746,4.28591899,3333.5,3332.9,2.195]
[1737025235935,1.67824899,3333.1,3333.0,0.9222]
[1737025236131,1.67824899,3333.1,3333.0,1.52235]
[1737025236642,1.67824899,3333.1,3333.0,0.9222]
[1737025237238,4.88604899,3333.1,3333.0,0.9222]
[1737025237645,4.88604899,3333.1,3332.9,2.195]
[1737025237646,4.28591899,3333.1,3332.9,2.195]
[1737025237838,2.03425,3333.0,3332.9,2.195]
[1737025238738,0.60021,3332.7,3332.6,1.53381]
[1737025239548,1.67831899,3332.8,3332.7,0.60021]
[1737025241147,0.60021,3332.7,3332.6,1.53381]
[1737025241535,0.60021,3332.7,3332.6,0.9336]
[1737025241741,0.60021,3332.7,3332.6,1.53382]
[1737025242347,3.80801,3332.7,3332.6,0.9336]
[1737025242546,3.80801,3332.7,3332.6,0.4617]
[1737025244238,3.80801,3332.7,3332.3,0.60027]
[1737025244239,0.60028,3332.4,3332.3,0.60027]
[1737025244446,0.60028,3332.4,3332.3,1.07547]
[1737025245044,0.60028,3332.4,3332.3,0.4752]
[1737025245848,0.6003,3332.2,3332.1,0.4945]
[1737025246045,3.8081,3332.2,3332.1,0.4945]
[1737025246548,3.8081,3332.2,3332.1,1.09481]
[1737025248645,3.8081,3332.2,3332.1,0.4945]
[1737025248948,0.60031,3332.1,3332.0,0.4752]
[1737025250951,0.60031,3332.1,3332.0,1.07553]
[1737025251550,3.2078,3332.2,3332.0,0.4752]
[1737025251747,3.2078,3332.2,3332.1,0.60031]
[1737025251949,3.2078,3332.2,3332.1,1.09111]
[1737025253757,3.80809,3332.2,3332.1,1.09111]
[1737025255457,3.80809,3332.2,3332.1,0.4908]
[1737025256154,3.80809,3332.2,3332.0,1.07553]
[1737025256155,0.60031,3332.1,3332.0,0.4752]
[1737025257159,0.60031,3332.1,3331.8,0.4701]
[1737025257160,0.60035,3331.9,3331.8,0.4701]
[1737025257360,2.39585548,3331.9,3331.7,0.4554]
[1737025257654,0.6004,3331.6,3331.5,1.5493]
[1737025258756,0.6004,3331.6,3331.5,0.9489]
[1737025259056,0.6004,3331.6,3331.5,1.54932]
[1737025259255,0.6004,3331.6,3331.5,0.9489]
[1737025259864,0.60049,3331.2,3331.1,0.60048]
[1737025260156,3.2078,3331.4,3331.3,0.60046]
[1737025260750,0.60041,3331.6,3331.5,0.60042]
[1737025261160,0.6004,3331.7,3331.6,0.60039]
[1737025261365,3.6783,3331.8,3331.2,1.50119]
[1737025261563,0.60042,3331.6,3331.5,0.60041]
[1737025261864,0.60045,3331.5,3331.4,0.60044]
[1737025262166,0.60047,3331.2,3331.1,1.06708]
[1737025262356,3.2078,3331.4,3331.1,0.4666]
[1737025262660,0.60047,3331.2,3331.1,1.06708]
[1737025262854,0.60047,3331.3,3331.2,0.60046]
[1737025265163,0.60047,3331.3,3331.1,0.4666]
[1737025265164,0.60047,3331.2,3331.1,1.06709]
[1737025266757,0.60047,3331.2,3331.1,0.4666]
[1737025267367,0.60047,3331.2,3331.1,1.06709]
[1737025267666,0.4957,3331.3,3331.1,0.4666]
[1737025267857,1.09617,3331.3,3331.1,0.4666]
[1737025268056,1.09617,3331.3,3331.2,0.60047]
[1737025268658,0.4957,3331.3,3331.2,0.60047]
[1737025269267,3.2078,3331.4,3331.3,0.60046]
[1737025269960,3.80818,3331.8,3331.7,0.60037]
[1737025270362,3.2078,3331.8,3331.7,0.60037]
[1737025270969,3.2078,3331.8,3331.7,1.06627]
[1737025272061,3.2078,3332.2,3332.1,0.60031]
[1737025272664,3.2078,3332.2,3332.1,1.08911]
[1737025273462,0.4554,3332.5,3332.4,0.60026]
[1737025273766,3.2078,3332.6,3332.5,0.60024]
[1737025275061,4.27184,3333.1,3333.0,0.60015]
[1737025275257,0.60018,3333.0,3332.9,0.60016]
[1737025275859,3.6717,3333.1,3332.5,0.4669]
[1737025276071,3.6717,3333.1,3333.0,0.60015]
[1737025276072,4.27184,3333.1,3333.0,0.60015]
[1737025276463,3.2078,3333.1,3333.0,0.60015]
[1737025282169,0.60017,3332.9,3332.8,2.79516]
[1737025282473,3.80794,3333.1,3333.0,0.60015]
[1737025282875,3.2078,3333.1,3333.0,0.60015]
[1737025284174,3.2078,3333.1,3333.0,2.01175]
[1737025284869,0.60007,3333.5,3333.4,0.60006]
[1737025285570,0.60006,3333.6,3333.5,0.60005]
[1737025286275,3.80784,3333.7,3333.6,0.60004]
[1737025287277,3.2078,3333.7,3333.6,0.60004]
[1737025287472,3.80782,3333.7,3333.6,0.60004]
[1737025287668,3.2078,3333.7,3333.6,0.60004]
[1737025289178,1.06111,3333.8,3333.7,0.60002]
[1737025289384,4.26891,3333.8,3333.7,0.60002]
[1737025296685,3.80781,3333.8,3333.7,0.60002]
[1737025297386,3.2078,3333.8,3333.7,0.60002]
[1737025297588,3.80781,3333.8,3333.7,0.60002]
[1737025297883,3.80781,3333.8,3333.5,3.33945548]
[1737025297884,3.2078,3333.8,3333.2,2.39585548]
[1737025298086,0.6001,3333.4,3333.3,1.78308]
[1737025298880,3.2078,3333.4,3333.1,0.976]
[1737025299080,1.50025,3333.3,3332.7,2.39585548]
[1737025299276,0.60019,3332.9,3332.8,0.60018]
[1737025300286,0.60019,3332.9,3332.7,2.39585548]
[1737025300287,1.4428,3333.1,3332.7,2.39585548]
[1737025300488,0.60018,3332.9,3332.8,0.60017]
[1737025300682,1.4428,3333.1,3332.7,2.39585548]
[1737025300883,0.60016,3333.0,3332.9,0.60015]
[1737025301488,1.4428,3333.1,3332.7,2.39585548]
[1737025301691,0.60018,3332.9,3332.8,0.60018]
[1737025304479,0.60017,3333.0,3332.9,0.60015]
[1737025306787,0.4867,3333.1,3333.0,0.60015]
[1737025307183,1.08683,3333.1,3333.0,0.60015]
[1737025308785,0.4867,3333.1,3333.0,0.60015]
[1737025309794,1.08683,3333.1,3333.0,0.60015]
[1737025310092,0.4867,3333.1,3333.0,0.60015]
[1737025310289,3.2078,3333.4,3333.3,0.6001]
[1737025310490,0.48,3333.8,3333.3,2.39585548]
[1737025310693,0.48,3333.8,3333.7,0.60002]
[1737025311596,3.2078,3333.9,3333.8,0.60001]
[1737025313589,3.6878,3334.3,3333.8,0.60001]
[1737025313806,5.83921937,3334.4,3334.1,2.195]
[1737025313989,5.83921937,3334.4,3334.3,2.99577548]
[1737025314398,5.83921937,3334.4,3334.3,5.19077548]
[1737025314596,5.83921937,3334.9,3334.3,4.59085548]
[1737025314894,5.83921937,3334.9,3334.8,0.59983]
[1737025315091,9.04701937,3334.9,3334.8,0.59983]
[1737025315796,3.2078,3334.9,3334.8,0.59983]
[1737025316600,0.59987,3334.6,3334.5,0.59986]
[1737025317200,0.5999,3334.5,3334.4,0.59989]
[1737025317401,0.5999,3334.4,3334.3,2.7949]
[1737025319103,3.2078,3334.5,3334.1,0.59994]
[1737025319300,0.59997,3334.1,3334.0,0.59995]
[1737025319701,0.924,3334.3,3333.7,4.51015548]
[1737025319897,0.59995,3334.2,3334.1,0.59993]
[1737025320602,0.59997,3334.1,3334.0,0.59995]
[1737025321802,0.60001,3333.9,3333.8,0.60001]
[1737025322003,0.60001,3333.8,3333.7,3.46396548]
[1737025322401,0.59999,3334.0,3333.9,0.59997]
[1737025324503,0.60001,3333.9,3333.8,0.59999]
[1737025325600,0.60001,3333.8,3333.7,3.46396548]
[1737025325801,0.60001,3333.8,3333.7,1.06811]
[1737025326505,0.6,3333.9,3333.8,0.59999]
[1737025328816,3.2078,3334.1,3333.7,0.4681]
[1737025329025,0.6,3334.0,3333.9,0.59997]
[1737025331922,3.80776,3334.1,3334.0,0.59997]